fUST/lending_fUST_20250309
["ID","MTS","AMOUNT","RATE_DAILY","PERIOD"]
[355714932,1741497045560,-500.0,0.0005863,120]
[355714934,1741497045573,-1500.0,0.0005863,120]
[355714936,1741497045584,-5685.01,0.0005863,7]
[355714938,1741497045593,-5440.06,0.0005863,120]
[355714940,1741497045603,-500.0,0.0005863,120]
[355714942,1741497045614,-2113.03,0.0005863,120]
[355714944,1741497045624,-500.0,0.0005863,120]
[355714946,1741497045633,-1018.87,0.0005863,120]
[355714948,1741497045645,-154.98,0.000587,60]
[355714950,1741497045656,-154.98,0.000587,60]
[355714952,1741497045666,-500.0,0.00058726,120]
[355714954,1741497045675,-237.38,0.00058778,30]
[355714956,1741497045685,-43772.90895021,0.000588,120]
[355714958,1741497045698,-2020.65807544,0.000588,120]
[355714965,1741497045750,-150.0,0.00052415,2]
[355714967,1741497045760,-500.0,0.00054794,2]
[355714969,1741497045769,-230.9893953,0.00055068,2]
[355714971,1741497045780,-2320.45035696,0.00055068,2]
[355714974,1741497045799,-4536.789086,0.00055068,2]
[355714980,1741497045842,1121.38878065,0.00043102,120]
[355714983,1741497045863,-1236.88422525,0.00043102,120]
[355714985,1741497045872,-374.7,0.00050856,120]
[355714987,1741497045882,-500.0,0.00054794,120]
[355714989,1741497045892,-2910.77116174,0.00055068,2]
[355714991,1741497045901,-501.45613973,0.00055068,2]
[355714993,1741497045911,-377.87795294,0.00055068,120]
[355714995,1741497045921,-9999.0,0.00055342,2]
[355714997,1741497045932,-601.06503065,0.00055616,2]
[355714999,1741497045941,-150.0,0.00057415,2]
[355715001,1741497045951,-21855.9978967,0.000588,120]
[355715003,1741497045963,-877.19,0.000588,120]
[355715005,1741497045975,-6059.204464,0.000588,120]
[355715078,1741497046744,-385.04326652,0.000588,120]
[355715079,1741497046756,-2866.21735344,0.000588,120]
[355715475,1741497301429,150.0,0.00022082,7]
[355715476,1741497301750,150.0,0.00022082,7]
[355715477,1741497302077,159.0,0.00022082,7]
[355715484,1741497946146,-170.108602,0.0003589,2]
[355715485,1741497946168,-700.0,0.000376,2]
[355715486,1741497946190,-1027.30413226,0.000376,2]
[355715487,1741497950075,-1450.74904303,0.000376,2]
[355715489,1741498045109,-1603.97484056,0.000376,2]
[355715490,1741498045133,-179.01551664,0.000378,107]
[355715491,1741498045156,-732.88929438,0.000379,8]
[355715492,1741498045179,-966.04915442,0.00038543,65]
[355715493,1741498049081,-3578.01034046,0.00038543,65]
[355715494,1741498051102,-2061.04282389,0.00038543,65]
[355715502,1741498116698,-159.58505571,0.00037,5]
[355715503,1741498146081,-4008.16646819,0.00037,5]
[355715504,1741498146104,-2278.96676023,0.00038543,65]
[355715505,1741498146127,-733.3734999,0.000389,8]
[355715506,1741498146148,-453.26885544,0.0003988,2]
[355715507,1741498146170,-170.82014993,0.0004,120]
[355715508,1741498146190,-167.643,0.00040505,14]
[355715509,1741498146210,-229.02,0.00040505,14]
[355715510,1741498146231,-853.908834,0.00042205,2]
[355715511,1741498146252,-500.0,0.0004298,10]
[355715551,1741498232160,-179.44372445,0.0004357,29]
[355715552,1741498232170,-218.11298004,0.00044899,2]
[355715611,1741498238234,-1031.58593167,0.000449,3]
[355715613,1741498238245,-179.2632848,0.00045,120]
[355715615,1741498238255,-500.0,0.00045614,10]
[355715616,1741498238265,-545.42622485,0.00045614,7]
[355715617,1741498238275,-347.8810126,0.00045999,120]
[355715618,1741498238285,-311.13993411,0.00045999,31]
[355715619,1741498238295,-500.0,0.00045999,120]
[355715620,1741498238305,-320.17281241,0.00045999,2]
[355715621,1741498239318,-161.19433812,0.00045999,2]
[355715650,1741498240126,-18.63284947,0.00045999,2]
[355715652,1741498240136,-500.0,0.00045999,120]
[355715654,1741498240146,-500.0,0.00045999,2]
[355715656,1741498240155,-500.0,0.00045999,120]
[355715657,1741498240166,-500.0,0.00045999,2]
[355715658,1741498240175,-500.0,0.00045999,120]
[355715659,1741498240186,-500.0,0.00045999,120]
[355715661,1741498240196,-206.79123668,0.00045999,120]
[355715662,1741498240206,-500.0,0.00045999,2]
[355715664,1741498240215,-500.0,0.00045999,2]
[355715666,1741498240225,-557.04376486,0.00045999,120]
[355715668,1741498240235,-298.13656434,0.00045999,120]
[355715670,1741498240245,-500.0,0.00045999,2]
[355715672,1741498240255,-500.0,0.00045999,2]
[355715674,1741498240265,-500.0,0.00045999,2]
[355715676,1741498240274,-444.79558465,0.00045999,2]
[355715962,1741498242979,-32.69292943,0.00045999,2]
[355715964,1741498242988,-378.34351685,0.00045999,2]
[355715966,1741498243001,-121.65648315,0.00045999,2]
[355715968,1741498243011,-500.0,0.00045999,2]
[355715970,1741498243021,-500.0,0.00045999,2]
[355715972,1741498243030,-221.99693263,0.00045999,2]
[355716189,1741498294795,174.856791,0.0003958,2]
[355716194,1741498330402,21.45464025,0.0003958,2]
[355716195,1741498330425,202.96359535,0.0003958,2]
[355716198,1741498345819,165.61611915,0.00041096,2]
[355716202,1741498820012,3246.47488755,0.0003,60]
[355716203,1741499136148,-370.0,0.00038458,5]
[355716204,1741499136171,-179.5537791,0.00038459,15]
[355716205,1741499136194,-500.0,0.00038459,2]
[355716206,1741499136215,-455.40125206,0.00038459,15]
[355716207,1741499136242,-222.11906212,0.00038459,2]
[355716208,1741499206073,-206.90415627,0.00035703,2]
[355716209,1741499237078,-956.53366413,0.00035703,2]
[355716210,1741499237100,-1042.93900739,0.0003748,2]
[355716211,1741499237123,-166.54171782,0.00038259,110]
[355716212,1741499237149,-211.38204615,0.00038459,2]
[355716213,1741499237183,-66.49889173,0.00038459,2]
[355716214,1741499237209,-500.0,0.00038459,2]
[355716215,1741499237231,-130.38921405,0.00038459,2]
[355716216,1741499240101,-89.33173196,0.00038459,2]
[355716217,1741499240127,-281.16835249,0.00038459,2]
[355716219,1741499253090,-871.3070353,0.00031,10]
[355716220,1741499253114,-500.0,0.00031,10]
[355716221,1741499253136,-523.67334036,0.00031,10]
[355716222,1741499253158,-229.02390673,0.00033,2]
[355716223,1741499345082,-270.97609327,0.00033,2]
[355716224,1741499345105,-500.0,0.00033,2]
[355716225,1741499345128,-500.0,0.00033,2]
[355716226,1741499345150,-760.53044661,0.000379,8]
[355716227,1741499345171,-970.44200798,0.0003809,120]
[355716228,1741499351160,-1831.47799202,0.0003809,120]
[355716229,1741499351182,-2008.86698866,0.000384,2]
[355716230,1741499351208,-218.83164751,0.00038459,2]
[355716231,1741499351234,-500.0,0.00038459,2]
[355716232,1741499351259,-500.0,0.00038459,2]
[355716233,1741499351285,-500.0,0.00038459,2]
[355716234,1741499351312,-500.0,0.00038459,2]
[355716235,1741499351337,-500.0,0.00038459,2]
[355716236,1741499351367,-500.0,0.00038459,2]
[355716237,1741499351397,-500.0,0.00038459,2]
[355716238,1741499351427,-500.0,0.00038459,2]
[355716239,1741499351454,-500.0,0.00038459,2]
[355716240,1741499351481,-500.0,0.00038459,2]
[355716241,1741499351509,-500.0,0.00038459,2]
[355716242,1741499351540,-500.0,0.00038459,2]
[355716243,1741499351568,-338.34343326,0.00038459,2]
[355716244,1741499351596,-499.99999999,0.00038459,2]
[355716245,1741499351623,-500.0,0.00038459,2]
[355716246,1741499351650,-500.0,0.00038459,2]
[355716247,1741499351675,-24232.0806859,0.0003846,2]
[355716248,1741499351698,-507.14862424,0.000385,5]
[355716249,1741499351720,-500.0,0.000385,5]
[355716250,1741499351742,-500.0,0.000385,5]
[355716251,1741499351764,-500.0,0.000385,5]
[355716252,1741499351788,-500.0,0.000385,5]
[355716253,1741499351810,-500.0,0.000385,5]
[355716254,1741499352078,-2107.61174751,0.0004,2]
[355716263,1741499358099,-3663.61052031,0.0004,2]
[355716264,1741499363144,-7877.88657294,0.0004,2]
[355716265,1741499363165,-800.0,0.00041,2]
[355716266,1741499363186,-500.0,0.00041179,42]
[355716267,1741499363207,-191.1,0.00041372,30]
[355716268,1741499363227,-1572.2199474,0.00041372,2]
[355716269,1741499363248,-1042.93900739,0.0004248,2]
[355716270,1741499405530,821.6612662,0.00038997,69]
[355716271,1741499405553,1693.78557086,0.00038997,69]
[355716272,1741499405574,1330.5085225,0.00038997,69]
[355716273,1741499405597,2066.15560686,0.00038997,69]
[355716306,1741499432193,-1368.84928337,0.00038997,69]
[355716308,1741499432205,-1000.0,0.00043979,10]
[355716310,1741499432217,-2977.43356099,0.00044,30]
[355716312,1741499432228,-569.64,0.00044794,120]
[355716314,1741499432238,-500.0,0.00044973,7]
[355716316,1741499432248,-416.66666667,0.0004499,3]
[355716318,1741499432259,-998.77992133,0.00044999,6]
[355716321,1741499432269,-20000.0,0.00045,2]
[355716323,1741499432279,-4196.9812266,0.00045,3]
[355716842,1741499438013,-416.351307,0.00044999,2]
[355716843,1741499438027,-83.648693,0.00044999,2]
[355716844,1741499438038,-416.351307,0.00044999,2]
[355716845,1741499438051,-10.1312967,0.00044999,2]
[355716846,1741499438215,-803.49575255,0.00045,3]
[355716847,1741499438240,-7014.6945354,0.00045,3]
[355716848,1741499438253,-186.03658498,0.00045,3]
[355716849,1741499438262,-500.0,0.00045,10]
[355716850,1741499438273,-500.0,0.00045,10]
[355716851,1741499438282,-500.0,0.00045,10]
[355716852,1741499438292,-163.81010769,0.00045353,2]
[355716853,1741499438302,-530.60702447,0.00045381,2]
[355716854,1741499438315,-530.60702447,0.0004568,2]
[355716855,1741499438325,-253.36,0.00045714,30]
[355716856,1741499438334,-617.747306,0.00045723,31]
[355716857,1741499438344,-500.0,0.00045723,120]
[355716858,1741499438355,-214.32081569,0.00045723,120]
[355716859,1741499438365,-5767.77176352,0.00045724,45]
[355716915,1741499440253,-684.48492881,0.00045724,45]
[355717212,1741499443301,-2533.59075981,0.00045724,45]
[355717456,1741499446101,-10914.21916873,0.00045724,45]
[355717458,1741499446110,-11032.83007035,0.00045724,45]
[355717461,1741499446125,-1900.000014,0.00045724,45]
[355717468,1741499446196,-47998.3450396,0.00045724,45]
[355717470,1741499446206,-169.18,0.00045724,10]
[355717472,1741499446217,-845.91,0.00045724,10]
[355717474,1741499446226,-16836.3607544,0.00045734,4]
[355717476,1741499446236,-16836.3607544,0.0004599,4]
[355717478,1741499446246,-2421.92101792,0.00046,8]
[355717691,1741499462768,150.0,0.00022082,7]
[355717692,1741499463120,158.0,0.00022082,7]
[355717693,1741499463487,200.0,0.00022082,7]
[355717694,1741499463848,308.0,0.00022082,7]
[355717695,1741499464272,316.0,0.00022082,7]
[355717696,1741499464689,488.0,0.00022082,7]
[355717697,1741499500702,55.92009616,0.00038442,2]
[355717698,1741499537280,500.0,0.00033,2]
[355717699,1741499537688,500.0,0.00033,2]
[355717700,1741499538507,500.0,0.00033,2]
[355717701,1741499538884,215.00000001,0.00033,2]
[355717719,1741500429123,-425.16804031,0.000309,2]
[355717720,1741500429146,-500.0,0.00031,10]
[355717721,1741500429169,-289.52987016,0.00031,10]
[355717722,1741500440090,-210.47012984,0.00031,10]
[355717723,1741500440112,-500.0,0.00031,10]
[355717724,1741500440135,-964.45061803,0.00031,10]
[355717725,1741500440157,-799.6868383,0.000329,6]
[355717726,1741500440179,-284.99999999,0.00033,2]
[355717727,1741500440203,-500.0,0.00033,2]
[355717728,1741500440224,-734.2256583,0.00033,2]
[355717729,1741500440244,-944.98972117,0.00033,2]
[355717730,1741500440265,-210.787555,0.00034302,2]
[355717731,1741500440286,-425.16804031,0.000359,2]
[355717732,1741500440310,-305.5673951,0.00038226,2]
[355717733,1741500440330,-444.07990384,0.00038442,2]
[355717734,1741500440353,-182.23591893,0.0003856,15]
[355717735,1741500447130,-317.76408107,0.0003856,15]
[355717736,1741500447154,-500.0,0.0003856,15]
[355717737,1741500447178,-500.0,0.0003856,2]
[355717738,1741500447200,-318.56503181,0.0003856,15]
[355717740,1741500550111,-2412.02239307,0.0003846,2]
[355717741,1741500550134,-166.5417178,0.0003846,111]
[355717742,1741500550158,-500.0,0.00038559,15]
[355717743,1741500550184,-500.0,0.00038559,2]
[355717744,1741500550207,-500.0,0.00038559,2]
[355717745,1741500550228,-500.0,0.00038559,15]
[355717746,1741500550250,-514.71454464,0.00038559,15]
[355717747,1741500550275,-500.0,0.00038559,2]
[355717748,1741500550296,-500.0,0.00038559,2]
[355717749,1741500550318,-500.0,0.00038559,15]
[355717750,1741500550340,-500.0,0.00038559,2]
[355717751,1741500550362,-169.62557876,0.00038559,15]
[355717752,1741500550384,-500.0,0.00038559,2]
[355717753,1741500550412,-500.0,0.00038559,2]
[355717754,1741500550434,-500.0,0.00038559,2]
[355717755,1741500550459,-500.0,0.00038559,2]
[355717756,1741500550482,-500.0,0.00038559,2]
[355717757,1741500550504,-500.0,0.00038559,2]
[355717758,1741500550527,-500.0,0.00038559,2]
[355717759,1741500550549,-500.0,0.00038559,2]
[355717760,1741500550573,-500.0,0.00038559,2]
[355717761,1741500550594,-500.0,0.00038559,2]
[355717762,1741500550618,-500.0,0.00038559,2]
[355717763,1741500550642,-574.79472765,0.00038559,2]
[355717764,1741500550669,-500.0,0.00038559,2]
[355717765,1741500550697,-500.0,0.00038559,2]
[355717766,1741500550721,-500.0,0.00038559,2]
[355717767,1741500550745,-500.0,0.00038559,2]
[355717768,1741500550768,-500.0,0.00038559,2]
[355717769,1741500550791,-500.0,0.00038559,2]
[355717770,1741500550814,-500.0,0.00038559,2]
[355717771,1741500550841,-500.0,0.00038559,2]
[355717772,1741500550864,-500.0,0.00038559,2]
[355717773,1741500550887,-500.0,0.00038559,2]
[355717774,1741500550909,-500.0,0.00038559,2]
[355717775,1741500550933,-500.0,0.00038559,2]
[355717776,1741500550957,-500.0,0.00038559,2]
[355717777,1741500550980,-500.0,0.00038559,2]
[355717778,1741500551003,-500.0,0.00038559,2]
[355717779,1741500551028,-500.0,0.00038559,2]
[355717780,1741500551052,-500.0,0.00038559,2]
[355717781,1741500551076,-500.0,0.00038559,2]
[355717782,1741500551100,-548.11086663,0.00038559,2]
[355717783,1741500551125,-500.0,0.00038559,2]
[355717784,1741500551150,-500.0,0.00038559,2]
[355717785,1741500551176,-500.0,0.00038559,2]
[355717786,1741500551200,-500.0,0.00038559,2]
[355717787,1741500551225,-500.0,0.00038559,2]
[355717788,1741500551249,-500.0,0.00038559,2]
[355717789,1741500551272,-500.0,0.00038559,2]
[355717790,1741500551296,-500.0,0.00038559,2]
[355717791,1741500551320,-500.0,0.00038559,2]
[355717792,1741500551343,-400.0,0.00038559,2]
[355717793,1741500551366,-500.0,0.00038559,2]
[355717794,1741500551392,-500.0,0.00038559,2]
[355717795,1741500551415,-500.0,0.00038559,2]
[355717796,1741500551439,-500.0,0.00038559,2]
[355717797,1741500551462,-500.0,0.00038559,2]
[355717798,1741500551485,-500.0,0.00038559,2]
[355717799,1741500551508,-500.0,0.00038559,2]
[355717800,1741500551531,-500.0,0.00038559,2]
[355717801,1741500551554,-500.0,0.00038559,2]
[355717802,1741500551579,-500.0,0.00038559,2]
[355717803,1741500551602,-500.0,0.00038559,2]
[355717804,1741500551625,-500.0,0.00038559,2]
[355717805,1741500551650,-500.0,0.00038559,2]
[355717806,1741500551676,-500.0,0.00038559,2]
[355717807,1741500551700,-500.0,0.00038559,2]
[355717808,1741500551721,-500.0,0.00038561,15]
[355717809,1741500551744,-500.0,0.00038561,15]
[355717810,1741500551766,-264.21691759,0.00038561,15]
[355717811,1741500551788,-356.43857948,0.00038561,15]
[355717812,1741500551808,-20137.23947623,0.00038562,2]
[355717813,1741500552091,-2641.76117567,0.00038562,2]
[355717814,1741500552112,-500.0,0.00038573,5]
[355717815,1741500552133,-500.0,0.000386,5]
[355717816,1741500552155,-842.094401,0.00038612,2]
[355717817,1741500552177,-773.03061026,0.000389,8]
[355717818,1741500552198,-425.16804031,0.000409,2]
[355717819,1741500561110,-1000.0,0.00044052,10]
[355717820,1741500561253,-1000.0,0.00044079,10]
[355717821,1741500561276,-813.72104228,0.00044995,2]
[355717822,1741500561298,-150.0,0.00044999,30]
[355717823,1741500561320,-437.95556239,0.00045,3]
[355717825,1741500573135,-1991.85782846,0.00045,3]
[355718191,1741500636148,-3785.9204717,0.00045,3]
[355718193,1741500636163,-813.72104228,0.0004535,2]
[355718195,1741500636174,-2412.02239305,0.0004558,28]
[355718197,1741500636186,-165.08304658,0.00045899,2]
[355718199,1741500636197,-444.88463093,0.00045973,10]
[355718201,1741500636208,-500.0,0.00045973,10]
[355718203,1741500636219,-500.0,0.00045973,10]
[355718205,1741500636230,-565.05790842,0.00045973,10]
[355718207,1741500636240,-500.0,0.00045973,10]
[355718209,1741500636251,-508.31052529,0.00045979,2]
[355718211,1741500636261,-500.0,0.00045979,2]
[355718212,1741500636273,-500.0,0.00045979,2]
[355718214,1741500636283,-500.0,0.00045979,2]
[355718216,1741500636294,-500.0,0.00045979,2]
[355718218,1741500636305,-500.0,0.00045979,2]
[355718220,1741500636315,-500.0,0.00045979,2]
[355718222,1741500636326,-194.81108666,0.00045979,2]
[355718224,1741500636336,-500.0,0.00045979,2]
[355718226,1741500636347,-13318.3636626,0.0004598,4]
[355718229,1741500636359,-606.84252089,0.0004598,4]
[355718232,1741500636381,-1154.32323501,0.0004598,4]
[355718309,1741500638316,-747.26292329,0.000459,10]
[355718310,1741500638327,-2661.51675474,0.0004598,4]
[355718317,1741500638779,-10609.29581356,0.0004598,4]
[355718319,1741500638789,-534.95184232,0.00045989,31]
[355718321,1741500638799,-599.50700564,0.00045989,120]
[355718323,1741500638809,-28350.3419868,0.0004599,4]
[355718325,1741500638818,-1500.24763863,0.0004599,4]
[355718461,1741500640998,-949.75236137,0.0004599,4]
[355718463,1741500641009,-999.0,0.00045999,120]
[355718465,1741500641018,-150.0,0.00045999,30]
[355718467,1741500641028,-16712.92420092,0.00046,8]
[355718469,1741500641040,-263.63452483,0.00046,8]
[355718471,1741500641052,-4640.0,0.00046,8]
[355718731,1741500643568,-20000.0,0.00046,8]
[355718960,1741500646045,418.65494783,0.0003836,2]
[355718978,1741500646583,-134.9664345,0.00046,8]
[355718984,1741500646639,-84.17916069,0.00046,8]
[355719532,1741500740454,500.0,0.00033,2]
[355719533,1741500743658,191.2875,0.00040492,14]
[355719536,1741501536122,-812.098808,0.00030231,2]
[355719537,1741501536147,-500.0,0.00031,10]
[355719538,1741501536173,-306.94860387,0.00031,10]
[355719540,1741501540079,-193.05139613,0.00031,10]
[355719541,1741501540101,-500.0,0.00031,10]
[355719542,1741501540125,-500.0,0.00031,10]
[355719543,1741501540147,-262.64240801,0.00031,10]
[355719549,1741501630089,-940.21845781,0.000309,2]
[355719550,1741501630124,-955.66711403,0.000309,2]
[355719551,1741501630147,-363.55671901,0.00030999,2]
[355719552,1741501652096,-36.44328099,0.00030999,2]
[355719553,1741501652122,-237.35759199,0.00031,10]
[355719554,1741501652144,-500.0,0.00031,10]
[355719555,1741501652166,-500.0,0.00031,10]
[355719556,1741501652187,-87.85113796,0.00031,10]
[355719557,1741501721502,301.99999965,0.0002,120]
[355719558,1741501745137,-479.6126961,0.00030008,2]
[355719559,1741501745158,-2801.5758843,0.0003091,2]
[355719560,1741501745179,-400.0,0.00030999,2]
[355719561,1741501745202,-412.14886204,0.00031,10]
[355719562,1741501745224,-500.0,0.00031,10]
[355719563,1741501745245,-500.0,0.00031,10]
[355719564,1741501745265,-500.0,0.00031,10]
[355719565,1741501745286,-500.0,0.00031,10]
[355719566,1741501745307,-500.0,0.00031,10]
[355719567,1741501745327,-500.0,0.00031,10]
[355719568,1741501745347,-500.0,0.00031,10]
[355719569,1741501745366,-500.0,0.00031,10]
[355719570,1741501745386,-500.0,0.00031,10]
[355719571,1741501745406,-500.0,0.00031,10]
[355719572,1741501745426,-500.0,0.00031,10]
[355719573,1741501745447,-500.0,0.00031,10]
[355719574,1741501745468,-500.0,0.00031,10]
[355719575,1741501745488,-500.0,0.00031,10]
[355719576,1741501745509,-500.0,0.00031,10]
[355719577,1741501745529,-710.4343693,0.00031,10]
[355719578,1741501745550,-171.60348658,0.00031009,2]
[355719579,1741501745572,-500.0,0.00031009,2]
[355719580,1741501745593,-500.0,0.00031009,2]
[355719581,1741501745614,-500.0,0.00031009,2]
[355719582,1741501745652,-500.0,0.00031009,2]
[355719583,1741501745678,-500.0,0.00031009,2]
[355719584,1741501745701,-207.33028124,0.00031009,2]
[355719585,1741501745724,-500.0,0.00031009,2]
[355719586,1741501745940,-500.0,0.00031009,2]
[355719587,1741501745963,-500.0,0.00031009,2]
[355719588,1741501745988,-500.0,0.00031009,2]
[355719589,1741501746010,-500.0,0.00031009,2]
[355719590,1741501746032,-500.0,0.00031009,2]
[355719591,1741501746061,-500.0,0.00031009,2]
[355719592,1741501746083,-239.07928462,0.00031009,2]
[355719593,1741501752096,-260.92071538,0.00031009,2]
[355719594,1741501752121,-241.99124597,0.00031009,2]
[355719595,1741501752146,-500.0,0.00031009,2]
[355719596,1741501752172,-500.0,0.00031009,2]
[355719597,1741501752195,-500.0,0.00031009,2]
[355719598,1741501752218,-500.0,0.00031009,2]
[355719599,1741501752244,-500.0,0.00031009,2]
[355719600,1741501752267,-500.0,0.00031009,2]
[355719601,1741501752292,-500.0,0.00031009,2]
[355719602,1741501752318,-500.0,0.00031009,2]
[355719603,1741501752343,-500.0,0.00031009,2]
[355719604,1741501752365,-500.0,0.00031009,2]
[355719605,1741501752390,-500.0,0.00031009,2]
[355719606,1741501752412,-500.0,0.00031009,2]
[355719607,1741501752437,-500.0,0.00031009,2]
[355719608,1741501752459,-500.0,0.00031009,2]
[355719609,1741501752484,-500.0,0.00031009,2]
[355719610,1741501752508,-500.0,0.00031009,2]
[355719611,1741501752533,-500.0,0.00031009,2]
[355719612,1741501752558,-500.0,0.00031009,2]
[355719613,1741501752582,-500.0,0.00031009,2]
[355719614,1741501752607,-500.0,0.00031009,2]
[355719615,1741501752632,-500.0,0.00031009,2]
[355719616,1741501752656,-500.0,0.00031009,2]
[355719617,1741501752680,-500.0,0.00031009,2]
[355719618,1741501752704,-500.0,0.00031009,2]
[355719619,1741501752729,-500.0,0.00031009,2]
[355719620,1741501752753,-500.0,0.00031009,2]
[355719621,1741501752777,-500.0,0.00031009,2]
[355719622,1741501752800,-500.0,0.00031009,2]
[355719623,1741501752824,-500.0,0.00031009,2]
[355719624,1741501752850,-500.0,0.00031009,2]
[355719625,1741501752873,-500.0,0.00031009,2]
[355719626,1741501752897,-500.0,0.00031009,2]
[355719627,1741501752922,-500.0,0.00031009,2]
[355719628,1741501752947,-500.0,0.00031009,2]
[355719629,1741501752971,-500.0,0.00031009,2]
[355719630,1741501752995,-500.0,0.00031009,2]
[355719631,1741501753018,-500.0,0.00031009,2]
[355719632,1741501753042,-500.0,0.00031009,2]
[355719633,1741501753069,-500.0,0.00031009,2]
[355719634,1741501753092,-500.0,0.00031009,2]
[355719635,1741501753118,-500.0,0.00031009,2]
[355719636,1741501753144,-500.0,0.00031009,2]
[355719637,1741501753168,-500.0,0.00031009,2]
[355719638,1741501753192,-500.0,0.00031009,2]
[355719639,1741501753218,-500.0,0.00031009,2]
[355719640,1741501753243,-310.94541042,0.00031009,2]
[355719641,1741501753263,-374.46628962,0.00031011,2]
[355719642,1741501753284,-419.65490395,0.00031011,2]
[355719643,1741501753305,-24900.0,0.00031012,2]
[355719644,1741501753324,-500.0,0.00031643,5]
[355719645,1741501753345,-500.0,0.00031643,5]
[355719646,1741501753365,-744.12207159,0.000319,6]
[355719647,1741501753386,-500.0,0.00033,2]
[355719648,1741501753407,-500.0,0.00033,2]
[355719649,1741501753427,-500.0,0.00033,2]
[355719650,1741501753447,-500.0,0.00033,2]
[355719651,1741501753468,-500.0,0.00033,2]
[355719652,1741501753489,-500.0,0.00033,2]
[355719653,1741501753509,-500.0,0.00033,2]
[355719654,1741501753530,-500.0,0.00033,2]
[355719655,1741501753552,-500.0,0.00033,2]
[355719656,1741501753572,-500.0,0.00033,2]
[355719657,1741501753593,-500.0,0.00033,2]
[355719658,1741501753614,-500.0,0.00033,2]
[355719659,1741501753635,-500.0,0.00033,2]
[355719660,1741501753656,-500.0,0.00033,2]
[355719661,1741501753676,-500.0,0.00033,2]
[355719662,1741501753697,-500.0,0.00033,2]
[355719663,1741501753718,-500.0,0.00033,2]
[355719664,1741501753738,-500.0,0.00033,2]
[355719665,1741501753758,-500.0,0.00033,2]
[355719666,1741501753778,-500.0,0.00033,2]
[355719667,1741501753799,-500.0,0.00033,2]
[355719668,1741501753820,-500.0,0.00033,2]
[355719669,1741501753841,-500.0,0.00033,2]
[355719670,1741501753862,-500.0,0.00033,2]
[355719671,1741501753884,-500.0,0.00033,2]
[355719672,1741501753904,-500.0,0.00033,2]
[355719673,1741501753926,-500.0,0.00033,2]
[355719674,1741501753947,-500.0,0.00033,2]
[355719675,1741501753967,-550.0,0.00033376,2]
[355719676,1741501753988,-172.813735,0.0003589,2]
[355719677,1741501754008,-1895.88557184,0.000359,2]
[355719678,1741501754029,-1000.0,0.00037122,5]
[355719679,1741501754050,-1000.0,0.00037122,5]
[355719680,1741501754074,-168.736092,0.00038356,2]
[355719681,1741501754094,-2801.57588427,0.00039194,2]
[355719682,1741501754117,-176.0,0.0004,120]
[355719683,1741501754138,-4533.78693649,0.0004,2]
[355719684,1741501754158,-256.2765,0.00040254,14]
[355719685,1741501754179,-1895.88557184,0.000409,2]
[355719686,1741501754202,-168.736092,0.00042192,2]
[355719687,1741501754429,222.666688,0.00030168,2]
[355719688,1741501754627,79.63108728,0.00031979,2]
[355719689,1741501755095,-143.03560072,0.00031979,2]
[355719698,1741501809465,600.0,0.00030992,2]